[Event "Titled Tuesday Blitz March 15 Early 2022"]
[White "Foisor, Sabina-Francesca"]
[Black "volunteers1998"]
[WhiteFideId "1212915"]
[WhiteElo "2243"]
[BlackElo "2271"]
[Result "1-0"]
[Round "11"]
[TimeControl "180+1"]
[Date "2022.03.15"]
[WhiteClock "0:00:19"]
[BlackClock "0:00:01"]

1. d4 {[%clk 0:02:57]}  f5 {[%clk 0:02:59]} 2. g3 {[%clk 0:02:56]}  Nf6 {[%clk 0:02:58]} 3. Bg2 {[%clk 0:02:56]}  g6 {[%clk 0:02:56]} 4. c4 {[%clk 0:02:56]}  Bg7 {[%clk 0:02:57]} 5. Nh3 {[%clk 0:02:56]}  O-O {[%clk 0:02:56]} 6. O-O {[%clk 0:02:56]}  d6 {[%clk 0:02:50]} 7. d5 {[%clk 0:02:56]}  e5 {[%clk 0:02:43]} 8. dxe6 {[%clk 0:02:56]}  Nc6 {[%clk 0:02:39]} 9. Nc3 {[%clk 0:02:50]}  Bxe6 {[%clk 0:02:34]} 10. Nd5 {[%clk 0:02:45]}  Qd7 {[%clk 0:02:10]} 11. Ng5 {[%clk 0:02:39]}  Bxd5 {[%clk 0:02:03]} 12. cxd5 {[%clk 0:02:40]}  Ne5 {[%clk 0:01:56]} 13. Ne6 {[%clk 0:02:39]}  Rfe8 {[%clk 0:01:54]} 14. Nxg7 {[%clk 0:02:38]}  Kxg7 {[%clk 0:01:49]} 15. Qd4 {[%clk 0:02:31]}  c6 {[%clk 0:01:36]} 16. dxc6 {[%clk 0:02:21]}  bxc6 {[%clk 0:01:37]} 17. Bg5 {[%clk 0:02:20]}  Ne4 {[%clk 0:01:11]} 18. Rad1 {[%clk 0:02:12]}  Nxg5 {[%clk 0:01:08]} 19. f4 {[%clk 0:02:08]}  Ne6 {[%clk 0:01:03]} 20. Qc3 {[%clk 0:02:03]}  Qc7 {[%clk 0:00:55]} 21. fxe5 {[%clk 0:02:02]}  dxe5 {[%clk 0:00:55]} 22. Qxc6 {[%clk 0:01:55]}  Rad8 {[%clk 0:00:46]} 23. Rxd8 {[%clk 0:01:27]}  Qxc6 {[%clk 0:00:41]} 24. Bxc6 {[%clk 0:01:25]}  Rxd8 {[%clk 0:00:42]} 25. e3 {[%clk 0:01:22]}  Rd2 {[%clk 0:00:39]} 26. Rf2 {[%clk 0:01:22]}  Rxf2 {[%clk 0:00:37]} 27. Kxf2 {[%clk 0:01:23]}  e4 {[%clk 0:00:35]} 28. b4 {[%clk 0:01:12]}  Kf6 {[%clk 0:00:33]} 29. a4 {[%clk 0:01:12]}  Ke5 {[%clk 0:00:27]} 30. a5 {[%clk 0:01:05]}  Kd6 {[%clk 0:00:25]} 31. Ba4 {[%clk 0:01:02]}  Nc7 {[%clk 0:00:23]} 32. Bb3 {[%clk 0:00:54]}  Nd5 {[%clk 0:00:22]} 33. b5 {[%clk 0:00:44]}  Nc3 {[%clk 0:00:20]} 34. b6 {[%clk 0:00:39]}  axb6 {[%clk 0:00:20]} 35. axb6 {[%clk 0:00:39]}  Kc6 {[%clk 0:00:19]} 36. Bg8 {[%clk 0:00:39]}  h6 {[%clk 0:00:17]} 37. Bh7 {[%clk 0:00:38]}  Nd1+ {[%clk 0:00:15]} 38. Ke2 {[%clk 0:00:36]}  Nc3+ {[%clk 0:00:16]} 39. Kd2 {[%clk 0:00:36]}  Nd5 {[%clk 0:00:14]} 40. Bxg6 {[%clk 0:00:35]}  Ne7 {[%clk 0:00:12]} 41. Bf7 {[%clk 0:00:30]}  Kxb6 {[%clk 0:00:11]} 42. Kc3 {[%clk 0:00:30]}  Kc5 {[%clk 0:00:08]} 43. h3 {[%clk 0:00:23]}  Nd5+ {[%clk 0:00:06]} 44. Bxd5 {[%clk 0:00:20]}  Kxd5 {[%clk 0:00:06]} 45. Kb4 {[%clk 0:00:21]}  Ke5 {[%clk 0:00:04]} 46. Kc5 {[%clk 0:00:20]}  h5 {[%clk 0:00:04]} 47. h4 {[%clk 0:00:21]}  Ke6 {[%clk 0:00:04]} 48. Kc6 {[%clk 0:00:18]}  Ke5 {[%clk 0:00:02]} 49. Kd7 {[%clk 0:00:18]}  Kf6 {[%clk 0:00:01]} 50. Kd6 {[%clk 0:00:19]} 1-0


[Site "https://www.chess.com"]

[Event "Titled Tuesday Blitz March 15 Early 2022"]
[White "Gareyev, Timur"]
[Black "Bluebaum, Matthias"]
[WhiteFideId "14200937"]
[BlackFideId "24651516"]
[WhiteElo "2582"]
[BlackElo "2550"]
[Result "1-0"]
[Round "11"]
[TimeControl "180+1"]
[Date "2022.03.15"]
[WhiteClock "0:01:13"]
[BlackClock "0:00:02"]

1. d4 {[%clk 0:02:50]}  Nf6 {[%clk 0:02:57]} 2. Nf3 {[%clk 0:02:49]}  d5 {[%clk 0:02:57]} 3. c4 {[%clk 0:02:48]}  e6 {[%clk 0:02:57]} 4. Nc3 {[%clk 0:02:47]}  Bb4 {[%clk 0:02:57]} 5. Bg5 {[%clk 0:02:47]}  h6 {[%clk 0:02:58]} 6. Bd2 {[%clk 0:02:47]}  O-O {[%clk 0:02:53]} 7. g4 {[%clk 0:02:47]}  Bxc3 {[%clk 0:02:53]} 8. Bxc3 {[%clk 0:02:46]}  Ne4 {[%clk 0:02:54]} 9. Qc2 {[%clk 0:02:43]}  Re8 {[%clk 0:02:42]} 10. h4 {[%clk 0:02:28]}  e5 {[%clk 0:02:42]} 11. dxe5 {[%clk 0:02:14]}  Bxg4 {[%clk 0:02:39]} 12. O-O-O {[%clk 0:02:10]}  c6 {[%clk 0:02:24]} 13. Rg1 {[%clk 0:02:07]}  Bxf3 {[%clk 0:01:46]} 14. exf3 {[%clk 0:02:05]}  Nxc3 {[%clk 0:01:47]} 15. Qxc3 {[%clk 0:02:00]}  Qxh4 {[%clk 0:01:45]} 16. Rg4 {[%clk 0:01:54]}  Qe7 {[%clk 0:01:31]} 17. f4 {[%clk 0:01:46]}  Na6 {[%clk 0:01:28]} 18. Bd3 {[%clk 0:01:34]}  dxc4 {[%clk 0:01:19]} 19. Rdg1 {[%clk 0:01:24]}  g5 {[%clk 0:00:35]} 20. Bxc4 {[%clk 0:01:20]}  b5 {[%clk 0:00:26]} 21. Qh3 {[%clk 0:01:18]}  Qc5 {[%clk 0:00:22]} 22. Qxh6 {[%clk 0:01:18]}  Qxc4+ {[%clk 0:00:22]} 23. Kb1 {[%clk 0:01:18]}  Qe4+ {[%clk 0:00:06]} 24. Ka1 {[%clk 0:01:17]}  f6 {[%clk 0:00:06]} 25. Qxf6 {[%clk 0:01:15]}  Re6 {[%clk 0:00:02]} 26. Rxg5+ {[%clk 0:01:13]} 1-0


[Site "https://www.chess.com"]

[Event "Titled Tuesday Blitz March 15 Early 2022"]
[White "Goriatchkin, Jouri"]
[Black "Iskusnyh, Sergei"]
[WhiteFideId "4120183"]
[BlackFideId "4120027"]
[WhiteElo "1206"]
[BlackElo "2492"]
[Result "1-0"]
[Round "11"]
[TimeControl "180+1"]
[Date "2022.03.15"]
[WhiteClock "0:00:24"]
[BlackClock "0:00:03"]

1. d4 {[%clk 0:03:00]}  Nf6 {[%clk 0:02:57]} 2. c4 {[%clk 0:02:59]}  c5 {[%clk 0:02:53]} 3. Nf3 {[%clk 0:02:49]}  e6 {[%clk 0:02:53]} 4. Nc3 {[%clk 0:02:48]}  cxd4 {[%clk 0:02:49]} 5. Nxd4 {[%clk 0:02:48]}  a6 {[%clk 0:02:34]} 6. e3 {[%clk 0:02:44]}  Bb4 {[%clk 0:02:28]} 7. Bd2 {[%clk 0:02:38]}  Qc7 {[%clk 0:02:24]} 8. a3 {[%clk 0:02:34]}  Bxc3 {[%clk 0:02:23]} 9. Bxc3 {[%clk 0:02:34]}  Ne4 {[%clk 0:02:19]} 10. Bb4 {[%clk 0:02:22]}  Nc6 {[%clk 0:02:14]} 11. Nxc6 {[%clk 0:01:56]}  bxc6 {[%clk 0:01:46]} 12. Bd3 {[%clk 0:01:54]}  Nf6 {[%clk 0:01:43]} 13. O-O {[%clk 0:01:52]}  c5 {[%clk 0:01:33]} 14. Bc3 {[%clk 0:01:50]}  Bb7 {[%clk 0:01:34]} 15. b4 {[%clk 0:01:36]}  O-O {[%clk 0:00:57]} 16. Qc2 {[%clk 0:01:20]}  cxb4 {[%clk 0:00:39]} 17. axb4 {[%clk 0:01:11]}  Ng4 {[%clk 0:00:22]} 18. g3 {[%clk 0:01:11]}  Qc6 {[%clk 0:00:19]} 19. e4 {[%clk 0:01:06]}  f5 {[%clk 0:00:17]} 20. Rae1 {[%clk 0:00:51]}  Rac8 {[%clk 0:00:10]} 21. f3 {[%clk 0:00:49]}  Nh6 {[%clk 0:00:06]} 22. Bb2 {[%clk 0:00:44]}  Qb6+ {[%clk 0:00:05]} 23. Kh1 {[%clk 0:00:40]}  Qxb4 {[%clk 0:00:06]} 24. Bc1 {[%clk 0:00:32]}  d5 {[%clk 0:00:03]} 25. Bd2 {[%clk 0:00:24]} 1-0


[Site "https://www.chess.com"]

[Event "Titled Tuesday Blitz March 15 Early 2022"]
[White "Hammer, Jon Ludvig"]
[Black "Dreev, Aleksey"]
[WhiteFideId "1503707"]
[BlackFideId "4100107"]
[WhiteElo "2607"]
[BlackElo "2625"]
[Result "0-1"]
[Round "11"]
[TimeControl "180+1"]
[Date "2022.03.15"]
[WhiteClock "0:00:16"]
[BlackClock "0:00:15"]

1. e4 {[%clk 0:03:00]}  c6 {[%clk 0:03:00]} 2. Nf3 {[%clk 0:02:49]}  d5 {[%clk 0:03:01]} 3. Nc3 {[%clk 0:02:50]}  dxe4 {[%clk 0:03:00]} 4. Nxe4 {[%clk 0:02:51]}  Nf6 {[%clk 0:03:00]} 5. Qe2 {[%clk 0:02:51]}  Nxe4 {[%clk 0:02:59]} 6. Qxe4 {[%clk 0:02:52]}  Nd7 {[%clk 0:03:00]} 7. d4 {[%clk 0:02:46]}  Nf6 {[%clk 0:02:59]} 8. Qd3 {[%clk 0:02:45]}  g6 {[%clk 0:02:59]} 9. Be2 {[%clk 0:02:37]}  Bg7 {[%clk 0:02:59]} 10. O-O {[%clk 0:02:36]}  O-O {[%clk 0:02:58]} 11. Re1 {[%clk 0:02:31]}  Bf5 {[%clk 0:02:58]} 12. Qb3 {[%clk 0:02:30]}  Qb6 {[%clk 0:02:58]} 13. Bc4 {[%clk 0:02:28]}  Qxb3 {[%clk 0:02:44]} 14. Bxb3 {[%clk 0:02:29]}  Rfe8 {[%clk 0:02:20]} 15. Ne5 {[%clk 0:02:28]}  Nd5 {[%clk 0:02:16]} 16. Bd2 {[%clk 0:02:14]}  a5 {[%clk 0:02:09]} 17. a3 {[%clk 0:01:56]}  a4 {[%clk 0:02:06]} 18. Bxd5 {[%clk 0:01:49]}  cxd5 {[%clk 0:02:06]} 19. c3 {[%clk 0:01:41]}  f6 {[%clk 0:02:01]} 20. Nf3 {[%clk 0:01:40]}  e5 {[%clk 0:01:59]} 21. dxe5 {[%clk 0:01:35]}  fxe5 {[%clk 0:01:59]} 22. Be3 {[%clk 0:01:35]}  Rad8 {[%clk 0:01:29]} 23. Rad1 {[%clk 0:01:31]}  Bg4 {[%clk 0:01:24]} 24. Rd2 {[%clk 0:01:30]}  Bxf3 {[%clk 0:01:23]} 25. gxf3 {[%clk 0:01:29]}  d4 {[%clk 0:01:08]} 26. Bg5 {[%clk 0:01:27]}  Rc8 {[%clk 0:01:08]} 27. Rd3 {[%clk 0:01:04]}  Kf7 {[%clk 0:01:02]} 28. Bd2 {[%clk 0:00:56]}  Re6 {[%clk 0:01:01]} 29. Re4 {[%clk 0:00:55]}  Rb6 {[%clk 0:00:40]} 30. f4 {[%clk 0:00:55]}  exf4 {[%clk 0:00:26]} 31. Rxf4+ {[%clk 0:00:56]}  Kg8 {[%clk 0:00:26]} 32. cxd4 {[%clk 0:00:56]}  Rxb2 {[%clk 0:00:26]} 33. Bb4 {[%clk 0:00:55]}  Bf8 {[%clk 0:00:20]} 34. d5 {[%clk 0:00:45]}  Bxb4 {[%clk 0:00:19]} 35. axb4 {[%clk 0:00:45]}  Rb3 {[%clk 0:00:16]} 36. Rd1 {[%clk 0:00:28]}  a3 {[%clk 0:00:16]} 37. d6 {[%clk 0:00:16]}  a2 {[%clk 0:00:15]} 0-1


[Site "https://www.chess.com"]

[Event "Titled Tuesday Blitz March 15 Early 2022"]
[White "Hess, Robert"]
[Black "Gaehwiler, Gabriel"]
[WhiteFideId "2022036"]
[BlackFideId "1314530"]
[WhiteElo "2557"]
[BlackElo "2383"]
[Result "1-0"]
[Round "11"]
[TimeControl "180+1"]
[Date "2022.03.15"]
[WhiteClock "0:00:12"]
[BlackClock "0:00:14"]

1. b3 {[%clk 0:02:58]}  Nf6 {[%clk 0:02:57]} 2. Bb2 {[%clk 0:02:59]}  g6 {[%clk 0:02:58]} 3. d3 {[%clk 0:02:59]}  Bg7 {[%clk 0:02:58]} 4. Nd2 {[%clk 0:03:00]}  b6 {[%clk 0:02:48]} 5. h3 {[%clk 0:02:59]}  Bb7 {[%clk 0:02:48]} 6. e3 {[%clk 0:03:00]}  c5 {[%clk 0:02:47]} 7. Ne2 {[%clk 0:03:00]}  d5 {[%clk 0:02:43]} 8. g4 {[%clk 0:03:00]}  Nbd7 {[%clk 0:02:31]} 9. Bg2 {[%clk 0:02:57]}  O-O {[%clk 0:02:30]} 10. Ng3 {[%clk 0:02:54]}  e5 {[%clk 0:02:21]} 11. h4 {[%clk 0:02:51]}  Qc7 {[%clk 0:01:53]} 12. h5 {[%clk 0:02:51]}  e4 {[%clk 0:01:50]} 13. dxe4 {[%clk 0:02:07]}  dxe4 {[%clk 0:01:44]} 14. Nc4 {[%clk 0:01:41]}  b5 {[%clk 0:01:12]} 15. Qd6 {[%clk 0:01:41]}  Qc8 {[%clk 0:00:51]} 16. hxg6 {[%clk 0:01:29]}  fxg6 {[%clk 0:00:28]} 17. Qe6+ {[%clk 0:01:17]}  Kh8 {[%clk 0:00:23]} 18. Nd6 {[%clk 0:01:18]}  Bd5 {[%clk 0:00:19]} 19. Qe7 {[%clk 0:00:51]}  Qd8 {[%clk 0:00:19]} 20. Qxd8 {[%clk 0:00:44]}  Raxd8 {[%clk 0:00:20]} 21. O-O-O {[%clk 0:00:44]}  Bc6 {[%clk 0:00:20]} 22. g5 {[%clk 0:00:35]}  Ng4 {[%clk 0:00:20]} 23. Bxe4 {[%clk 0:00:34]}  Bxb2+ {[%clk 0:00:19]} 24. Kxb2 {[%clk 0:00:34]}  Nxf2 {[%clk 0:00:20]} 25. Bxc6 {[%clk 0:00:33]}  Nxh1 {[%clk 0:00:20]} 26. Bxh1 {[%clk 0:00:27]}  Ne5 {[%clk 0:00:21]} 27. Nge4 {[%clk 0:00:26]}  a6 {[%clk 0:00:21]} 28. Nxc5 {[%clk 0:00:26]}  Rf2 {[%clk 0:00:16]} 29. Rd5 {[%clk 0:00:17]}  Nc6 {[%clk 0:00:14]} 30. Nce4 {[%clk 0:00:12]}  Rxc2+ {[%clk 0:00:12]} 31. Kxc2 {[%clk 0:00:11]}  Nb4+ {[%clk 0:00:13]} 32. Kb2 {[%clk 0:00:11]}  Nxd5 {[%clk 0:00:14]} 33. Nf7+ {[%clk 0:00:12]} 1-0


[Site "https://www.chess.com"]

[Event "Titled Tuesday Blitz March 15 Early 2022"]
[White "Hoffmann, Asa"]
[Black "Budrewicz, Krzysztof"]
[WhiteFideId "2001470"]
[BlackFideId "1127950"]
[WhiteElo "2117"]
[BlackElo "2248"]
[Result "1-0"]
[Round "11"]
[TimeControl "180+1"]
[Date "2022.03.15"]
[WhiteClock "0:01:24"]
[BlackClock "0:01:02"]

1. d4 {[%clk 0:02:43]}  Nf6 {[%clk 0:02:58]} 2. Bg5 {[%clk 0:02:40]}  d5 {[%clk 0:02:57]} 3. Nd2 {[%clk 0:02:40]}  Nbd7 {[%clk 0:02:54]} 4. e3 {[%clk 0:02:35]}  h6 {[%clk 0:02:51]} 5. Bh4 {[%clk 0:02:35]}  e6 {[%clk 0:02:48]} 6. f4 {[%clk 0:02:33]}  Be7 {[%clk 0:02:48]} 7. Bd3 {[%clk 0:02:33]}  c5 {[%clk 0:02:49]} 8. c3 {[%clk 0:02:33]}  a5 {[%clk 0:02:49]} 9. Ngf3 {[%clk 0:02:33]}  a4 {[%clk 0:02:50]} 10. O-O {[%clk 0:02:32]}  O-O {[%clk 0:02:49]} 11. Ne5 {[%clk 0:02:31]}  Qc7 {[%clk 0:02:48]} 12. Qf3 {[%clk 0:02:29]}  cxd4 {[%clk 0:02:42]} 13. exd4 {[%clk 0:02:29]}  Nxe5 {[%clk 0:02:39]} 14. fxe5 {[%clk 0:02:28]}  Nh7 {[%clk 0:02:39]} 15. Bg3 {[%clk 0:02:26]}  b6 {[%clk 0:02:38]} 16. a3 {[%clk 0:02:26]}  Ba6 {[%clk 0:02:38]} 17. Bxa6 {[%clk 0:02:23]}  Rxa6 {[%clk 0:02:39]} 18. Bf4 {[%clk 0:02:19]}  Ra5 {[%clk 0:02:35]} 19. Qg3 {[%clk 0:02:16]}  Bg5 {[%clk 0:02:35]} 20. Nf3 {[%clk 0:02:14]}  Bxf4 {[%clk 0:02:34]} 21. Qxf4 {[%clk 0:02:14]}  Rb5 {[%clk 0:02:35]} 22. Rf2 {[%clk 0:02:14]}  Qe7 {[%clk 0:02:35]} 23. h4 {[%clk 0:02:12]}  Rb3 {[%clk 0:02:33]} 24. Raf1 {[%clk 0:02:11]}  f5 {[%clk 0:02:18]} 25. exf6 {[%clk 0:02:09]}  Rxf6 {[%clk 0:02:12]} 26. Qg3 {[%clk 0:02:08]}  Nf8 {[%clk 0:01:52]} 27. Ne5 {[%clk 0:02:07]}  Rxf2 {[%clk 0:01:52]} 28. Rxf2 {[%clk 0:02:06]}  Nd7 {[%clk 0:01:44]} 29. Ng6 {[%clk 0:02:03]}  Qe8 {[%clk 0:01:32]} 30. h5 {[%clk 0:02:01]}  Nf6 {[%clk 0:01:32]} 31. Qe5 {[%clk 0:01:42]}  Ng4 {[%clk 0:01:21]} 32. Rf8+ {[%clk 0:01:27]}  Qxf8 {[%clk 0:01:19]} 33. Qxe6+ {[%clk 0:01:25]}  Qf7 {[%clk 0:01:02]} 34. Qc8+ {[%clk 0:01:24]} 1-0


[Site "https://www.chess.com"]

[Event "Titled Tuesday Blitz March 15 Early 2022"]
[White "Istvanovszki, Martin"]
[Black "Sanchez, Robert"]
[WhiteFideId "726958"]
[BlackFideId "2034360"]
[WhiteElo "2345"]
[BlackElo "2327"]
[Result "1-0"]
[Round "11"]
[TimeControl "180+1"]
[Date "2022.03.15"]
[WhiteClock "0:02:01"]
[BlackClock "0:02:03"]

1. e4 {[%clk 0:02:44]}  e6 {[%clk 0:02:58]} 2. d4 {[%clk 0:02:44]}  d5 {[%clk 0:02:58]} 3. Nc3 {[%clk 0:02:44]}  Nf6 {[%clk 0:02:58]} 4. Bg5 {[%clk 0:02:44]}  Be7 {[%clk 0:02:58]} 5. e5 {[%clk 0:02:44]}  Nfd7 {[%clk 0:02:59]} 6. h4 {[%clk 0:02:44]}  h6 {[%clk 0:02:59]} 7. Bxe7 {[%clk 0:02:44]}  Qxe7 {[%clk 0:02:59]} 8. f4 {[%clk 0:02:45]}  a6 {[%clk 0:02:54]} 9. Nf3 {[%clk 0:02:45]}  c5 {[%clk 0:02:54]} 10. Qd2 {[%clk 0:02:43]}  Nc6 {[%clk 0:02:53]} 11. Ne2 {[%clk 0:02:44]}  cxd4 {[%clk 0:02:52]} 12. Nexd4 {[%clk 0:02:43]}  Nc5 {[%clk 0:02:52]} 13. Bd3 {[%clk 0:02:42]}  Nxd4 {[%clk 0:02:50]} 14. Nxd4 {[%clk 0:02:41]}  Bd7 {[%clk 0:02:50]} 15. O-O-O {[%clk 0:02:38]}  Rc8 {[%clk 0:02:49]} 16. Kb1 {[%clk 0:02:37]}  O-O {[%clk 0:02:27]} 17. Rde1 {[%clk 0:02:26]}  Nxd3 {[%clk 0:02:26]} 18. Qxd3 {[%clk 0:02:26]}  Qc5 {[%clk 0:02:24]} 19. g4 {[%clk 0:02:21]}  Bb5 {[%clk 0:02:23]} 20. Qd2 {[%clk 0:02:17]}  Rc7 {[%clk 0:02:18]} 21. f5 {[%clk 0:02:15]}  exf5 {[%clk 0:02:17]} 22. gxf5 {[%clk 0:02:15]}  f6 {[%clk 0:02:09]} 23. Ne6 {[%clk 0:02:09]}  Qc6 {[%clk 0:02:04]} 24. Nxc7 {[%clk 0:02:02]}  Qxc7 {[%clk 0:02:03]} 25. Qxd5+ {[%clk 0:02:01]} 1-0


[Site "https://www.chess.com"]

[Event "Titled Tuesday Blitz March 15 Early 2022"]
[White "Jumabayev, Rinat"]
[Black "Kosteniuk, Alexandra"]
[WhiteFideId "13702661"]
[BlackFideId "4128125"]
[WhiteElo "2561"]
[BlackElo "2469"]
[Result "1-0"]
[Round "11"]
[TimeControl "180+1"]
[Date "2022.03.15"]
[WhiteClock "0:00:03"]
[BlackClock "0:00:05"]

1. d4 {[%clk 0:02:59]}  Nf6 {[%clk 0:02:59]} 2. Nf3 {[%clk 0:02:59]}  e6 {[%clk 0:02:59]} 3. Bf4 {[%clk 0:02:59]}  b6 {[%clk 0:02:57]} 4. e3 {[%clk 0:02:59]}  Bb7 {[%clk 0:02:58]} 5. Nbd2 {[%clk 0:02:57]}  c5 {[%clk 0:02:57]} 6. Bd3 {[%clk 0:02:56]}  d5 {[%clk 0:02:55]} 7. c3 {[%clk 0:02:56]}  Bd6 {[%clk 0:02:53]} 8. Ne5 {[%clk 0:02:52]}  O-O {[%clk 0:02:45]} 9. Qf3 {[%clk 0:02:48]}  Nc6 {[%clk 0:02:40]} 10. h4 {[%clk 0:02:41]}  Qc7 {[%clk 0:02:34]} 11. Nxc6 {[%clk 0:02:23]}  Bxf4 {[%clk 0:02:20]} 12. Qxf4 {[%clk 0:02:23]}  Qxc6 {[%clk 0:02:18]} 13. h5 {[%clk 0:02:12]}  h6 {[%clk 0:02:09]} 14. Nf3 {[%clk 0:02:01]}  Rac8 {[%clk 0:02:00]} 15. g4 {[%clk 0:01:47]}  Qc7 {[%clk 0:01:58]} 16. Ne5 {[%clk 0:01:28]}  Ne4 {[%clk 0:01:53]} 17. f3 {[%clk 0:01:14]}  Ng5 {[%clk 0:01:42]} 18. O-O-O {[%clk 0:00:36]}  cxd4 {[%clk 0:01:39]} 19. exd4 {[%clk 0:00:35]}  f6 {[%clk 0:01:03]} 20. Ng6 {[%clk 0:00:34]}  Qxf4+ {[%clk 0:01:03]} 21. Nxf4 {[%clk 0:00:35]}  Rfe8 {[%clk 0:01:02]} 22. Bb5 {[%clk 0:00:26]}  Re7 {[%clk 0:00:45]} 23. Ng6 {[%clk 0:00:26]}  Rec7 {[%clk 0:00:45]} 24. Rhe1 {[%clk 0:00:24]}  Kf7 {[%clk 0:00:43]} 25. Re3 {[%clk 0:00:24]}  a6 {[%clk 0:00:40]} 26. Bd3 {[%clk 0:00:20]}  b5 {[%clk 0:00:40]} 27. Nf4 {[%clk 0:00:20]}  b4 {[%clk 0:00:37]} 28. Kd2 {[%clk 0:00:16]}  bxc3+ {[%clk 0:00:27]} 29. bxc3 {[%clk 0:00:17]}  Bc6 {[%clk 0:00:23]} 30. Rb1 {[%clk 0:00:14]}  Bd7 {[%clk 0:00:17]} 31. Rb6 {[%clk 0:00:14]}  Rc6 {[%clk 0:00:16]} 32. Rb7 {[%clk 0:00:14]}  R8c7 {[%clk 0:00:15]} 33. Rb8 {[%clk 0:00:05]}  Rc8 {[%clk 0:00:14]} 34. Bg6+ {[%clk 0:00:05]}  Kf8 {[%clk 0:00:13]} 35. Rb3 {[%clk 0:00:05]}  a5 {[%clk 0:00:11]} 36. Ra3 {[%clk 0:00:03]}  Ra6 {[%clk 0:00:09]} 37. Bc2 {[%clk 0:00:03]}  a4 {[%clk 0:00:09]} 38. Nd3 {[%clk 0:00:03]}  Ke7 {[%clk 0:00:09]} 39. Nc5 {[%clk 0:00:03]}  Rxc5 {[%clk 0:00:09]} 40. dxc5 {[%clk 0:00:04]}  e5 {[%clk 0:00:09]} 41. Bd3 {[%clk 0:00:01]}  Ra5 {[%clk 0:00:09]} 42. Bc2 {[%clk 0:00:02]}  Bc6 {[%clk 0:00:09]} 43. Bd1 {[%clk 0:00:02]}  Ne6 {[%clk 0:00:09]} 44. c4 {[%clk 0:00:02]}  d4 {[%clk 0:00:08]} 45. Re1 {[%clk 0:00:02]}  Nxc5 {[%clk 0:00:08]} 46. Bc2 {[%clk 0:00:02]}  Kd6 {[%clk 0:00:09]} 47. Rb1 {[%clk 0:00:03]}  Ne6 {[%clk 0:00:09]} 48. Rb8 {[%clk 0:00:03]}  Nf4 {[%clk 0:00:08]} 49. Rg8 {[%clk 0:00:02]}  Ne6 {[%clk 0:00:08]} 50. Bf5 {[%clk 0:00:01]}  Ng5 {[%clk 0:00:07]} 51. Rxg7 {[%clk 0:00:01]}  Nxf3+ {[%clk 0:00:08]} 52. Ke2 {[%clk 0:00:01]}  e4 {[%clk 0:00:08]} 53. Rg6 {[%clk 0:00:02]}  Ke5 {[%clk 0:00:08]} 54. Rxh6 {[%clk 0:00:02]}  Kf4 {[%clk 0:00:07]} 55. Rxf6 {[%clk 0:00:02]}  d3+ {[%clk 0:00:08]} 56. Kd1 {[%clk 0:00:02]}  e3 {[%clk 0:00:07]} 57. Bxd3+ {[%clk 0:00:02]}  Kg3 {[%clk 0:00:08]} 58. Rxc6 {[%clk 0:00:02]}  Kf2 {[%clk 0:00:05]} 59. h6 {[%clk 0:00:02]}  Nd4 {[%clk 0:00:05]} 60. Rd6 {[%clk 0:00:03]}  Nf3 {[%clk 0:00:05]} 61. Rf6 {[%clk 0:00:02]}  Ra8 {[%clk 0:00:04]} 62. Be4 {[%clk 0:00:03]}  Rd8+ {[%clk 0:00:05]} 63. Kc2 {[%clk 0:00:03]}  Rd2+ {[%clk 0:00:05]} 64. Kc3 {[%clk 0:00:03]}  e2 {[%clk 0:00:04]} 65. Rxf3+ {[%clk 0:00:04]}  Ke1 {[%clk 0:00:04]} 66. Re3 {[%clk 0:00:04]}  Kd1 {[%clk 0:00:04]} 67. Rxe2 {[%clk 0:00:03]}  Rxe2 {[%clk 0:00:05]} 68. h7 {[%clk 0:00:03]}  Rxe4 {[%clk 0:00:05]} 69. h8=Q {[%clk 0:00:03]} 1-0


[Site "https://www.chess.com"]

[Event "Titled Tuesday Blitz March 15 Early 2022"]
[White "Kett, Tim"]
[Black "Petrova, Irina"]
[WhiteFideId "1801210"]
[BlackFideId "14124122"]
[WhiteElo "2098"]
[BlackElo "1993"]
[Result "0-1"]
[Round "11"]
[TimeControl "180+1"]
[Date "2022.03.15"]
[WhiteClock "0:00:10"]
[BlackClock "0:01:06"]

1. e4 {[%clk 0:03:00]}  d6 {[%clk 0:02:56]} 2. d4 {[%clk 0:03:00]}  Nf6 {[%clk 0:02:56]} 3. Nc3 {[%clk 0:03:00]}  e5 {[%clk 0:02:57]} 4. Nf3 {[%clk 0:02:55]}  Nbd7 {[%clk 0:02:56]} 5. Bc4 {[%clk 0:02:54]}  Be7 {[%clk 0:02:56]} 6. O-O {[%clk 0:02:53]}  O-O {[%clk 0:02:56]} 7. Re1 {[%clk 0:02:52]}  c6 {[%clk 0:02:56]} 8. a4 {[%clk 0:02:52]}  h6 {[%clk 0:02:55]} 9. h3 {[%clk 0:02:50]}  Re8 {[%clk 0:02:56]} 10. Be3 {[%clk 0:02:47]}  Bf8 {[%clk 0:02:55]} 11. Qd2 {[%clk 0:02:40]}  exd4 {[%clk 0:02:52]} 12. Nxd4 {[%clk 0:02:36]}  Nxe4 {[%clk 0:02:44]} 13. Nxe4 {[%clk 0:02:35]}  Rxe4 {[%clk 0:02:45]} 14. Nf5 {[%clk 0:02:28]}  Rxc4 {[%clk 0:02:35]} 15. Bd4 {[%clk 0:02:11]}  Nf6 {[%clk 0:02:22]} 16. Ne3 {[%clk 0:01:56]}  Rxd4 {[%clk 0:02:20]} 17. Qxd4 {[%clk 0:01:56]}  Be6 {[%clk 0:02:16]} 18. f4 {[%clk 0:01:53]}  d5 {[%clk 0:02:09]} 19. f5 {[%clk 0:01:52]}  Bd7 {[%clk 0:02:09]} 20. g4 {[%clk 0:01:46]}  Qc7 {[%clk 0:02:05]} 21. Kg2 {[%clk 0:01:43]}  Ne4 {[%clk 0:02:00]} 22. Nf1 {[%clk 0:01:19]}  Bc5 {[%clk 0:01:49]} 23. Qd3 {[%clk 0:01:18]}  Qf4 {[%clk 0:01:46]} 24. Qf3 {[%clk 0:01:17]}  Qxf3+ {[%clk 0:01:39]} 25. Kxf3 {[%clk 0:01:17]}  Re8 {[%clk 0:01:39]} 26. Kf4 {[%clk 0:00:25]}  g5+ {[%clk 0:01:31]} 27. fxg6 {[%clk 0:00:24]}  fxg6 {[%clk 0:01:32]} 28. Ne3 {[%clk 0:00:16]}  Nd2 {[%clk 0:01:09]} 29. Ng2 {[%clk 0:00:10]}  Bd6+ {[%clk 0:01:06]} 0-1


[Site "https://www.chess.com"]